Cogmind - Beta 16 @@@ ROGUE MODE // 2025.12.10 @ 16:25:48 Player: arkn Result: Self-destructed Performance ------------- Evolutions (0) 0 Regions Visited (4) 800 Robots Destroyed (33) 165 Value Destroyed (564) 564 Prototype IDs (23) 460 Alien Tech Used (0) 0 Bonus (287) 287 TOTAL SCORE: 2276 Bonus ------- Aligned with FarCom 300 Friendly Fire -13 Cogmind --------- Core Integrity 10/250 Matter 268/300 Energy 100/100 System Corruption 0% Temperature Warm (176) Movement Walking (130) Location -9/Mines Parts ------- > --- POWER (1) -------- (None) > --- PROPULSION (2) --- Carbon-fiber Leg Makeshift Leg > --- UTILITY (2) ------ Medium Storage Unit Targeting Computer > --- WEAPON (2) ------- Particle Gun > --- INVENTORY (10) --- Potential Leg Potential Leg Structural Scanner Seismic Detector Melee Analysis Suite Bomb Drone Bay Makeshift Hammer Katana Signal Generator Peak State ------------ > --- POWER ------------ Light Nuclear Core > --- PROPULSION ------- Carbon-fiber Leg Makeshift Leg > --- UTILITY ---------- Medium Storage Unit Targeting Computer > --- WEAPON ----------- Particle Gun Shotgun > --- INVENTORY -------- Potential Leg Potential Leg Structural Scanner Seismic Detector Melee Analysis Suite Bomb Drone Bay Makeshift Hammer Katana Signal Generator [Rating: 21] Favorites ----------- Power Improved Ion Engine Engine Improved Ion Engine Power Core Light Nuclear Core Propulsion Improved Aluminum Leg Treads Light Treads Leg Improved Aluminum Leg Utility Targeting Computer Device Seismic Detector Storage Medium Storage Unit Processor Targeting Computer Weapon Particle Gun Energy Gun Particle Gun Ballistic Gun Shotgun Build | -11 -10 -10 -10 -9 ------- Run | Yrd Mat Min Exi Min Slots Evolved . | . . . . . Power . | . . . . . Propulsion . | . . . . . Utility . | . . . . . Weapon . | . . . . . Parts Attached 22 | 5 4 5 1 7 Power 2 | . 1 . . 1 Engine 1 | . 1 . . . Core 1 | . . . . 1 Reactor . | . . . . . Propulsion 8 | 2 . 2 . 4 Treads 2 | 2 . . . . Leg 6 | . . 2 . 4 Wheel . | . . . . . Hover . | . . . . . Flight . | . . . . . Utility 5 | 1 1 2 1 . Device 1 | 1 . . . . Storage 3 | . 1 1 1 . Processor 1 | . . 1 . . Hackware . | . . . . . Protection . | . . . . . Artifact . | . . . . . Weapon 7 | 2 2 1 . 2 Energy Gun 4 | . 2 1 . 1 Energy Cannon . | . . . . . Ballistic Gun 3 | 2 . . . 1 Ballistic Cannon . | . . . . . Launcher . | . . . . . Special Weapon . | . . . . . Impact Weapon . | . . . . . Slashing Weapon . | . . . . . Piercing Weapon . | . . . . . Special Melee Weapon . | . . . . . Unidentified Prototypes . | . . . . . Parts Lost 6 | . . 1 . 5 Power 1 | . . . . 1 Propulsion 2 | . . . . 2 Utility . | . . . . . Weapon 3 | . . 1 . 2 Highest Loss Streak 2 | . . 1 . 2 To Critical Strikes . | . . . . . Average Backups 7 | 1 7 7 8 8 Power . | . . . . . Propulsion 2 | . 4 2 3 2 Utility 1 | . . 1 2 3 Weapon 2 | . 2 2 3 2 Tool/Special . | . . . . . Unused Backups 9 | . 1 . . 8 Power . | . . . . . Propulsion 3 | . 1 . . 2 Utility 3 | . . . . 3 Weapon 3 | . . . . 3 Tool/Special . | . . . . . Average Slot Usage (%) 98 | . 98 100 100 92 Engine 12 | . 13 14 14 8 Treads 10 | . 28 6 . . Leg 16 | . . 21 28 22 Device 3 | . 14 . . . Storage 13 | . 13 14 14 14 Processor 10 | . . 14 14 14 Energy Gun 25 | . 27 28 28 14 Ballistic Gun 2 | . . . . 12 Peak Build Rating 21 | 5 11 14 16 21 Average Rating 13 | 3 10 13 15 17 On Entrance 9 | . 5 11 14 16 Avg Prop Armor Cover (%) 28 | 28 28 . . . Naked Turns . | . . . . . Heaviest Build 23 | 3 19 23 23 23 Greatest Support 40 | 40 40 40 26 35 Greatest Overweight (x) 1 | . 1 . . 1 Average Overweight (x) . | . . . . . Largest Inventory Capacity 10 | 5 8 10 10 10 Average Capacity 8 | 5 7 9 10 10 Most Carried 10 | 3 8 8 10 10 Average Carried 8 | 1 7 7 9 9 Final Capacity 10 | 5 8 10 10 10 Final Carried 10 | 3 8 8 10 10 Class Distribution -------------------- 100% | Mutant Dominant Class ---------------- Mutant | -10/Materials Mutant | -10/Mines Mutant | -10/Exiles Mutant | -9/Mines Resources | -11 -10 -10 -10 -9 ----------- Run | Yrd Mat Min Exi Min Matter Collected 462 | 280 48 50 . 84 Remotely . | . . . . . Salvage Created 993 | 120 185 385 . 303 Parts 57 | 11 6 29 . 11 Haulers Intercepted . | . . . . . Recyclers Shooed . | . . . . . Parts Field Recycled . | . . . . . Retrieved Matter . | . . . . . Parts Self-Destructed . | . . . . . Prevented . | . . . . . Parts Restored . | . . . . . Kills | -11 -10 -10 -10 -9 ------- Run | Yrd Mat Min Exi Min Combat Hostiles Destroyed 23 | . 4 8 . 11 Guns 23 | . 4 8 . 11 Classes Destroyed 10 | 3 1 2 . 4 Worker 5 | 1 1 3 . . Builder 1 | . . 1 . . Tunneler 4 | 2 . 2 . . Recycler 3 | 1 . 2 . . Mechanic 1 | . . . . 1 Swarmer 10 | . . 7 . 3 Grunt 6 | . 4 1 . 1 Brawler 2 | . . . . 2 Duelist 1 | . . . . 1 Assembled 4 | . . . . 4 Best Kill Streak 5 | 2 3 2 . 5 Combat Bots Only 4 | . 2 2 . 4 Max Kills in Single Turn 2 | 1 1 2 . 1 Gunslinging 1 | . . 1 . . Exploded . | . . . . . Melee . | . . . . . Uniques/NPCs Destroyed . | . . . . . Combat | -11 -10 -10 -10 -9 -------- Run | Yrd Mat Min Exi Min Hostile Shots Fired 138 | . 8 53 . 77 Missed 38 | . 3 13 . 22 Hits 100 | . 5 40 . 55 Melee 3 | . . . . 3 Projectile 97 | . 5 40 . 52 Damage Taken 1122 | . 64 360 . 698 Core 240 | . . 82 . 158 Absorbed by Shields . | . . . . . Core Remaining (%) 100 | 100 . . . . Volleys Fired 92 | 19 17 31 . 25 Largest 2 | 2 2 2 . 2 Hottest 130 | 40 130 130 . 130 Shots Fired 179 | 38 34 62 . 45 Gun 179 | 38 34 62 . 45 Cannon . | . . . . . Launcher . | . . . . . Special . | . . . . . Kinetic 52 | 38 . . . 14 Thermal 127 | . 34 62 . 31 Explosive . | . . . . . Electromagnetic . | . . . . . Robot Hit Streak 15 | 15 7 9 . 14 Robot Miss Streak 8 | 2 8 4 . 3 Penetration Max . | . . . . . Secondary Targets 4 | . . 3 . 1 Max Gunslinging Chain 1 | . . 1 . 1 Shots Hit Robots 111 | 27 18 36 . 30 Core Hits 58 | 10 8 18 . 22 Critical Kills . | . . . . . Critical Parts Destroyed . | . . . . . Critical Strikes 6 | . 3 2 . 1 Burn 6 | . 3 2 . 1 Melee Attacks . | . . . . . Impact . | . . . . . Slashing . | . . . . . Piercing . | . . . . . Sneak Attacks . | . . . . . Combat Hostiles . | . . . . . Follow-up Attacks . | . . . . . Damage Inflicted 1546 | 228 280 577 . 461 Guns 1540 | 228 280 571 . 461 Cannons . | . . . . . Explosions . | . . . . . Melee . | . . . . . Ramming 6 | . . 6 . . Kinetic 401 | 228 . . . 173 Thermal 1139 | . 280 571 . 288 Explosive . | . . . . . Electromagnetic . | . . . . . Impact . | . . . . . Slashing . | . . . . . Piercing . | . . . . . Highest Corruption . | . . . . . Average Corruption . | . . . . . Corruption Purged . | . . . . . Corruption Blocked . | . . . . . Overload Shots . | . . . . . Overflow Damage . | . . . . . Projectiles . | . . . . . Explosions . | . . . . . Melee . | . . . . . Knockbacks . | . . . . . Impact . | . . . . . Kinetic . | . . . . . Secondary . | . . . . . Self-Inflicted Damage . | . . . . . Shots . | . . . . . Rammed 3 | . . 3 . . Targets Rammed 3 | . . 3 . . Kicked . | . . . . . Crushed . | . . . . . Highest Temperature 450 | . 234 450 . 432 Average Temperature 123 | . 91 127 . 150 Received Heat Transfer 95 | . 39 36 . 20 Effects 11 | . . 8 . 3 Shutdowns 3 | . . 1 . 2 Interference 3 | . . 3 . . Short Circuit 1 | . . . . 1 Damage (major) 4 | . . 4 . . Siege Activations . | . . . . . Martial Activations . | . . . . . Shielding Activations . | . . . . . Robots Disrupted . | . . . . . Combat Hostiles . | . . . . . Robots Corrupted . | . . . . . Combat Hostiles . | . . . . . Parts Fried . | . . . . . Impact Corruptions . | . . . . . Robots Melted . | . . . . . Combat Hostiles . | . . . . . Parts Melted 10 | . 1 3 . 6 Heat Transferred 3182 | . 888 1517 . 777 Parts Sabotaged . | . . . . . Parts Stolen . | . . . . . Parts Stripped . | . . . . . Power Chain Reactions . | . . . . . Alert | -11 -10 -10 -10 -9 ------- Run | Yrd Mat Min Exi Min Maximum Alert Level . | . . . . . Low Security (%) 100 | 100 100 100 . 100 Level 1 . | . . . . . Level 2 . | . . . . . Level 3 . | . . . . . Level 4 . | . . . . . Level 5 . | . . . . . High Security . | . . . . . Max Security . | . . . . . Peak Influence 70 | 10 45 62 . 70 Initial 3 | . 3 2 . . Average 12 | 1 9 13 . 17 Influence Increases 633 | 20 158 290 . 165 Destroy 0b10 Robot/C 380 | . 80 160 . 140 Destroy 0b10 Robot/NC 70 | 20 5 40 . 5 Destroy Leader 70 | . 20 30 . 20 Successful Hack 8 | . 8 . . . Disable Machine 30 | . 30 . . . Lose Combat Pursuer 75 | . 15 60 . . Influence Decreases 633 | 15 156 275 22 165 Entered New Map 29 | . 2 5 22 . Time Decay 569 | 15 154 270 . 130 Lost Part 30 | . . . . 30 Lost Ally 5 | . . . . 5 Squads Dispatched 2 | . 1 . . 1 Investigation . | . . . . . Extermination . | . . . . . Reinforcement 1 | . 1 . . . Assault 1 | . . . . 1 Garrison . | . . . . . Intercept . | . . . . . Searches Triggered . | . . . . . Construction Impeded . | . . . . . Haulers Reinforced . | . . . . . Active Scanning Responses . | . . . . . Cargo Convoy Interrupts . | . . . . . Stealth | -11 -10 -10 -10 -9 --------- Run | Yrd Mat Min Exi Min Distress Signals . | . . . . . Communications Jammed . | . . . . . Distress Signals . | . . . . . Times Spotted 43 | . 8 17 . 18 Peak Tracking Total 18 | . 2 3 . 18 Tactical Retreats 5 | . 1 3 . 1 Traps | -11 -10 -10 -10 -9 ------- Run | Yrd Mat Min Exi Min Traps Triggered . | . . . . . Indirectly . | . . . . . Trap Hack Attempts . | . . . . . Triggered . | . . . . . Disarmed . | . . . . . Reprogrammed . | . . . . . Reused . | . . . . . Traps Extracted . | . . . . . Installed . | . . . . . Triggered . | . . . . . Machines | -11 -10 -10 -10 -9 ---------- Run | Yrd Mat Min Exi Min Machines Disabled 2 | . 2 . . . Max in Single Turn 2 | . 2 . . . Machines Repaired . | . . . . . Machines Dismantled . | . . . . . Machines Sabotaged . | . . . . . Overloaded Fab Kills . | . . . . . Hacking | -11 -10 -10 -10 -9 --------- Run | Yrd Mat Min Exi Min Machines Accessed 4 | . 2 1 1 . Terminals 2 | . 2 . . . Fabricators . | . . . . . Repair Stations . | . . . . . Recycling Units . | . . . . . Scanalyzers . | . . . . . Garrison Access . | . . . . . Total Hacks 10 | . 8 1 1 . Successful 6 | . 4 1 1 . Failed 4 | . 4 . . . Catastrophic 2 | . 2 . . . Database Lockouts . | . . . . . Manual 9 | . 8 . 1 . Terminals 8 | . 8 . . . Fabricators . | . . . . . Repair Stations . | . . . . . Recycling Units . | . . . . . Scanalyzers . | . . . . . Garrison Access . | . . . . . Terminal Hacks 3 | . 1 1 1 . Open Door 1 | . . 1 . . Branch Access Points 1 | . 1 . . . Proto ID Catalog 1 | . . . 1 . Fabricator Hacks . | . . . . . Repair Station Hacks . | . . . . . Recycling Unit Hacks . | . . . . . Scanalyzer . | . . . . . Garrison Access Hacks . | . . . . . Unauthorized Hacks 3 | . 3 . . . Terminals 3 | . 3 . . . Track 1 | . 1 . . . Botnet 2 | . 2 . . . Fabricators . | . . . . . Repair Stations . | . . . . . Recycling Units . | . . . . . Scanalyzers . | . . . . . Garrison Access . | . . . . . Data Cores Recovered . | . . . . . Used . | . . . . . Hacking Detections 2 | . 2 . . . Full Trace Events . | . . . . . Feedback Events . | . . . . . Feedback Blocked . | . . . . . Robot Schematics Acquired . | . . . . . Robots Built . | . . . . . Authchips . | . . . . . Time . | . . . . . Total Robot Build Rating . | . . . . . Part Schematics Acquired . | . . . . . Parts Built . | . . . . . Authchips . | . . . . . Time . | . . . . . Total Part Build Rating . | . . . . . Part Studies Acquired . | . . . . . Parts Repaired . | . . . . . Time . | . . . . . Parts Recycled . | . . . . . Recycled Matter . | . . . . . Retrieved Matter . | . . . . . Retrieved Components . | . . . . . Parts Scanalyzed . | . . . . . Part Schematics Acquired . | . . . . . Parts Damaged . | . . . . . Bothacking | -11 -10 -10 -10 -9 ------------ Run | Yrd Mat Min Exi Min Used RIF Installer . | . . . . . Robots Hacked . | . . . . . Non-combat . | . . . . . Combat . | . . . . . Robot Hacks Applied . | . . . . . Relay Couplers Released . | . . . . . Fabnet Peak Effective % . | . . . . . Robots Rewired . | . . . . . Allies Hacked . | . . . . . Hacks Repelled . | . . . . . Allies | -11 -10 -10 -10 -9 -------- Run | Yrd Mat Min Exi Min Total Allies 1 | . . . . 1 Largest Group 1 | . . . . 1 Highest-Rated Group 31 | . . . . 31 Highest-Rated Ally 31 | . . . . 31 Total Orders . | . . . . . Ally Attacks 7 | . . . . 7 Total Damage 127 | . . . . 127 Kills . | . . . . . Allies Corrupted . | . . . . . Allies Melted . | . . . . . Intel | -11 -10 -10 -10 -9 ------- Run | Yrd Mat Min Exi Min Active Infowar (turns) 811 | 63 748 . . . Seismic 811 | 63 748 . . . Robot Analysis Total . | . . . . . Derelict Logs Recovered 2 | . . 2 . . Drone Launches . | . . . . . Drone Recoveries . | . . . . . Exploration | -11 -10 -10 -10 -9 ------------- Run | Yrd Mat Min Exi Min Turns Passed 2879 | 117 748 1275 280 459 Spaces Moved 1695 | 61 392 778 231 233 Core 50 | 43 7 . . . Treads 534 | 18 385 131 . . Legs 1111 | . . 647 231 233 Wheels . | . . . . . Hover . | . . . . . Flight . | . . . . . Fastest Speed 50 | 50 50 120 120 120 Average Speed 134 | 82 158 126 120 147 Slowest Speed 210 | 160 160 160 120 210 Overloaded Moves . | . . . . . Propulsion Burnouts . | . . . . . Robots Hopped . | . . . . . Potential Cave-ins . | . . . . . Cave-ins Triggered . | . . . . . Exploration Rate (%) 56 | 4 78 93 61 45 Regions Visited 4 Branch Regions 3 Pre-discovered Areas 1 | . . 1 . . Known Exits Taken 1 | . 1 . . . Unknown Exits Taken 3 | 1 . 1 1 . Scrap Searched 2 | . . 1 . 1 Spaces Dug . | . . . . . Terrain Destroyed . | . . . . . Melee . | . . . . . Projectile . | . . . . . AOE . | . . . . . Terrain Rammed . | . . . . . Walls Destroyed . | . . . . . Machines Disabled . | . . . . . Actions | -11 -10 -10 -10 -9 --------- Run | Yrd Mat Min Exi Min Total 2122 | 94 486 1004 234 304 Wait 281 | 6 64 181 . 30 Move 1691 | 60 391 777 230 233 Hop . | . . . . . Pick Up 20 | 4 7 3 2 4 Fast Attach 10 | 4 3 . . 3 Attach 6 | 1 1 1 . 3 Detach . | . . . . . Swap 6 | . . 4 1 1 Drop 13 | . 3 4 1 5 Fire 92 | 19 17 31 . 25 Melee . | . . . . . Ram . | . . . . . Kick . | . . . . . Crush 3 | . . 3 . . Escape Stasis . | . . . . . Rewire . | . . . . . Trap . | . . . . . Miscellaneous . | . . . . . Route ------- -11/Scrapyard -10/Materials (discovered 4 exits: [*Mat x2] / *Min x2) -10/Mines (discovered 4 exits: [*Mat x2] / *Exi / [*Sub]) -10/Exiles -9/Mines History --------- Turn | Location | Event 3 | -11/Scrapyard | Discovered new exit (range 16) 118 | -11/Scrapyard | Entered Materials 118 | -10/Materials | Discovered new exit (range 16) 165 | -10/Materials | Identified exit to Mines 308 | -10/Materials | Build established: Mutant 537 | -10/Materials | Discovered new exit (range 14) 692 | -10/Materials | Discovered new exit (range 3) 866 | -10/Materials | Entered Mines 868 | -10/Mines | Met a Derelict bent on vengeance 1136 | -10/Mines | Found the Drone Emporium 1147 | -10/Mines | Found Prototype Device 1221 | -10/Mines | Learned 4 Materials zone layouts 1329 | -10/Mines | Discovered new exit (range 5) 1757 | -10/Mines | Learned location of Storage (-9) 2000 | -10/Mines | Discovered new exit (range 6) 2087 | -10/Mines | Discovered new exit (range 10) 2088 | -10/Mines | A weapon hastily lodged in a ceiling crevice suddenly fell to the ground 2136 | -10/Mines | Deemed a non-threat by the Exiles lab entrance 2136 | -10/Mines | Discovered new exit (range 5) 2141 | -10/Mines | Entered Exiles 2171 | -10/Exiles | Met 8R-AWN 2192 | -10/Exiles | Met EX-HEX 2224 | -10/Exiles | Met EX-BIN 2240 | -10/Exiles | Aligned with FarCom system 2241 | -10/Exiles | Given EX-Vault access code 2270 | -10/Exiles | Opened EX-Vault 2276 | -10/Exiles | Found Potential Leg 2278 | -10/Exiles | Found Potential Leg 2302 | -10/Exiles | Warned to stay clear of 0b10 Research branches 2321 | -10/Exiles | Exiles lab attacked by MAIN.C 2407 | -10/Exiles | Discovered new exit (range 14) 2421 | -10/Exiles | Left Exiles lab with Potential Leg 2421 | -10/Exiles | Entered Mines 2585 | -9/Mines | Met a Derelict testing a Signal Generator 2594 | -9/Mines | Found Signal Generator 2749 | -9/Mines | Received a Rocket Launcher from a helpful Derelict 2820 | -9/Mines | Assembled infested the area 2825 | -9/Mines | Assisted by a Guerilla fighting off Assembled 2863 | -9/Mines | Core integrity fell below 50% 2872 | -9/Mines | Core integrity fell below 20% 2880 | -9/Mines | Self-destructed Last Messages --------------- 02748_ M7-Q9N(g): "Need a small hole in the wall? Leave that to the mining laser wimps, I say!" 02749_ M7-Q9N(g): "Would you like a rocket launcher? I know I would if I were you, so I'm going to lend you mine." 02749_ M7-Q9N(g) slips back into the shadows. 02780_ K-01 Serf collects debris. 02820_ ALERT: Infestation in the mines, dispatching Demolisher response squad. 02821_ K-01 Serf collects debris. 02825_ A derelict emerges from the shadows: "You need to get out of here! I've been tracking a group of Assembled to figure out where they're coming from, and they're closing on this area, come on!" 02825_ K-01 Serf collects debris. 02847_ K-01 Serf destroyed. 02848_ K-01 Serf collects debris. 02850_ K-01 Serf destroyed. 02853_ Knocked back. 02857_ as-08785 destroyed. 02859_ Lgt. Nuclear Core destroyed. 02864_ as-26427 destroyed. 02870_ as-58141 destroyed. 02875_ Shotgun destroyed. 02876_ as-85056 destroyed. Map ----- +----------------------------------------------------+ | ??????????????????????????????????? | | ??????????????????????????????????? | | ??????????????????????????????????? | | ??????????????????????????????????? | | ??????????????????????????????????? | | ??????????????????????????????????? | | ??????????????????????????????????? | | ??????????????????????????????????? | | ??????????????????????????????????? | | ??????????????????????????????????? | | ??????????#???????????????????????? | | ????????? #???????????????????????? | | ???????? #????????????????????????? | | ??????? #?????????????????????????? | | ###### ???????????????????????????? | | # $ ????????????????????????????? | | # ?????????????????????????????? | | # #??????????????????????????????? | | # #??????????????????????????????? | | # #??????????????????????????????? | | # ###????????????????????????????? | | # ##???????????????##??????????? | | # #???????????????# ??????????? | | ## #???????????????# ??????????? | | ?# ##?####?????????# ??????????? | | ?# ###@ ##????????# ####??????? | | ?# a% ##??????## ##?????? | | ?## % ###????# #?????? | | ??# * aa ##???? #?????? | | ?# % a #????# ##????? | | ?# #????# ##???? | | ?## ##??## #???? | | ??##!% #### #???? | | ???# = ## ##??? | | ???# ### ##?? | | ???## ##?## ##? | | ????####???## #### #? | | ????????????## t #??##### #? | | ?????????????#### #??????## ##? | | ????????????????# #???????## ##?? | | ????????????????#/ #????????# #??? | | ????????????????#=%##???????# #??? | | ???????????????## ##??????# ##?# | | ???????????????# %#?????## ## | | ??????????????## #????## | | ??????????????# %#????# | | ??????????????# ##????# | | ??????????????# % ##?????# | | ??????????????# ###??????# | | ??????????????# #????????## | +----------------------------------------------------+ Best States ------------- Heat Dissipation 25 Energy Generation 14 Energy Capacity 265 Matter Stores 300 Matter Capacity 300 Sight Range 16 Terrain Scan Density 10 Evasion (%) 55 Targeting Accuracy 5 Recoil Reduction 2 Item Schematics ----------------- None Robot Schematics ------------------ None Fabricated ------------ Nothing Repaired ---------- Nothing Studied --------- None Alien Tech Used ----------------- None Achievements -------------- None Challenges ------------ None Game ------ Seed OpticalMetaShotgun Manual? 0 Play Time 00:25:56 Cumulative 271.4 hours Start 2025.12.08 @ 23:35:02 End 2025.12.10 @ 16:25:48 Sessions 2 Manual Loads 0 Difficulty Rogue Special Mode None Game No. 121 Rogue 121 Adventurer 0 Explorer 0 Win Type - Total 4 Types 4/0/0/0/0/0/0/0/0/0 Lore% 53 Gallery% 56 Achievement% 41 Wizard Run 0 Options --------- Layout 0 ASCII 0 Keyboard 0 Movement Numpad Keybinds 0 Fullscreen 2 Font 24/Smallcaps Map View 113x50 Zoom Use 0% Tactical HUD 1 Map Filters NONE Filters NONE Steam 1 RUN: 6579e66a-4ee9-4152-880a-492b12d9eb1f